[Event "Frauenbundesliga 2024-25"]
[Site "Germany"]
[Date "2025.02.15"]
[Round "5.12"]
[White "Daulyte-Cornette, Deimante"]
[Black "Kanakova, Natalie"]
[Result "1-0"]
[Annotator "ChessBase"]
[ECO "B45"]
[WhiteElo "2384"]
[BlackElo "2162"]
[PlyCount "117"]
[EventDate "2024.11.06"]
[EventType "team-tourn"]
[EventCountry "GER"]
[SourceTitle "playchess.com"]
[Source "ChessBase"]
[SourceQuality "1"]
[TimeControl "40/5400+30:1800+30"]

1. e4 {[%emt 0:00:03]} c5 {[%emt 0:00:07]} 2. Nf3 {[%emt 0:00:07]} e6 {[%emt 0:00:10]} 3. d4 {[%emt 0:00:40]} cxd4 {[%emt 0:00:05]} 4. Nxd4 {[%emt 0:00:06]} Nf6 {[%emt 0:00:06]} 5. Nc3 {[%emt 0:00:14]} Nc6 {[%emt 0:00:05]} 6. Be2 {[%emt 0:01:44]} Bb4 {[%emt 0:02:04]} 7. O-O {[%emt 0:00:55]} O-O {[%emt 0:03:18]} 8. Nxc6 {[%emt 0:01:49]} dxc6 {[%emt 0:03:27]} 9. e5 {[%emt 0:01:27]} Bxc3 {[%emt 0:02:19]} 10. bxc3 {[%emt 0:00:25]} Nd5 {[%emt 0:01:19]} 11. Qd4 {[%emt 0:11:25]} b6 {[%emt 0:05:42]} 12. Bd3 {[%emt 0:02:34]} Ne7 {[%emt 0:21:02]} 13. Qe4 {[%emt 0:04:27]} Ng6 {[%emt 0:02:35]} 14. Ba3 {[%emt 0:05:29]} Re8 {[%emt 0:00:57]} 15. Qxc6 {[%emt 0:15:34]} Bd7 {[%emt 0:00:07]} 16. Qd6 {[%emt 0:00:15]} Rc8 {[%emt 0:02:05]} 17. Rfd1 {[%emt 0:05:40]} Bc6 {[%emt 0:19:45]} 18. Qxd8 {[%emt 0:11:08]} Rcxd8 {[%emt 0:02:33]} 19. Bd6 {[%emt 0:00:17]} f6 {[%emt 0:04:00]} 20. Re1 {[%emt 0:01:58]} Nh4 {[%emt 0:12:39]} 21. f3 {[%emt 0:01:52]} Nf5 {[%emt 0:00:45]} 22. Ba3 {[%emt 0:03:05]} Kf7 {[%emt 0:01:09]} 23. Kf2 {[%emt 0:02:19]} Rc8 {[%emt 0:01:20]} 24. c4 {[%emt 0:04:45]} Bb7 {[%emt 0:01:53]} 25. Rad1 {[%emt 0:05:27]} Rc7 {[%emt 0:02:24]} 26. g4 {[%emt 0:06:43]} Nh4 {[%emt 0:04:33]} 27. Bd6 {[%emt 0:00:14]} Rcc8 {[%emt 0:01:01]} 28. Re3 {[%emt 0:02:19]} Ng6 {[%emt 0:02:27]} 29. Rb1 {[%emt 0:02:49]} Ba8 {[%emt 0:00:51]} 30. Kg3 {[%emt 0:00:37]} fxe5 {[%emt 0:01:46]} 31. Bxe5 {[%emt 0:00:49]} Nxe5 {[%emt 0:00:32]} 32. Rxe5 {[%emt 0:00:03]} Kf6 {[%emt 0:02:24]} 33. Rbe1 {[%emt 0:01:32]} Bb7 {[%emt 0:00:22]} 34. f4 {[%emt 0:03:44]} Ba6 {[%emt 0:00:05]} 35. R1e4 {[%emt 0:01:59]} Bb7 {[%emt 0:00:13]} 36. Re2 {[%emt 0:01:13]} Ba6 {[%emt 0:00:23]} 37. f5 {[%emt 0:01:59]} Bxc4 {[%emt 0:00:08]} 38. Bxc4 {[%emt 0:00:11]} Rxc4 {[%emt 0:00:04]} 39. fxe6 {[%emt 0:00:16]} Ke7 {[%emt 0:01:58]} 40. Rf5 {[%emt 0:00:35]} Rf8 {[%emt 0:00:29]} 41. Rxf8 {[%emt 0:13:38]} Kxf8 {[%emt 0:00:04]} 42. Rf2+ {[%emt 0:00:56]} Ke7 {[%emt 0:00:46]} 43. Rf7+ {[%emt 0:01:07]} Kxe6 {[%emt 0:00:05]} 44. Rxg7 {[%emt 0:00:50]} Rc3+ {[%emt 0:00:50]} 45. Kf4 {[%emt 0:01:07]} Rxc2 {[%emt 0:01:04]} 46. Rxh7 {[%emt 0:00:38]} Rxa2 {[%emt 0:00:08]} 47. h4 {[%emt 0:00:42]} Kf6 {[%emt 0:05:18]} 48. g5+ {[%emt 0:06:25]} Kg6 {[%emt 0:00:11]} 49. Rh6+ {[%emt 0:00:04]} Kg7 {[%emt 0:00:14]} 50. Kg4 {[%emt 0:01:26]} b5 {[%emt 0:03:08]} 51. Rd6 {[%emt 0:01:01]} b4 {[%emt 0:01:51]} 52. Rd7+ {[%emt 0:00:49]} Kf8 {[%emt 0:00:59]} 53. h5 {[%emt 0:02:04]} a5 {[%emt 0:09:39]} 54. h6 {[%emt 0:01:53]} Rg2+ {[%emt 0:07:48]} 55. Kf5 {[%emt 0:00:14]} Rh2 {[%emt 0:01:49]} 56. h7 {[%emt 0:01:59]} b3 {[%emt 0:00:29]} 57. g6 {[%emt 0:00:05]} b2 {[%emt 0:01:17]} 58. g7+ {[%emt 0:00:09]} Ke8 {[%emt 0:00:05]} 59. Rb7 {[%emt 0:00:27]} 1-0

[Event "Frauenbundesliga 2024-25"]
[Site "Germany"]
[Date "2025.02.15"]
[Round "5.12"]
[White "Spiel, Marianne"]
[Black "Peglau, Sarah"]
[Result "0-1"]
[Annotator "NA"]
[ECO "C06"]
[WhiteElo "1887"]
[BlackElo "1878"]
[PlyCount "59"]
[EventDate "2024.11.06"]
[EventType "team-tourn"]
[EventCountry "GER"]
[SourceTitle "playchess.com"]
[Source "ChessBase"]
[SourceQuality "1"]
[TimeControl "40/5400+30:1800+30"]

1. e4 {[%emt 0:00:02]} e6 {[%emt 0:00:10]} 2. d4 {[%emt 0:00:15]} d5 {[%emt 0:00:07]} 3. Nd2 {[%emt 0:01:26]} Nf6 {[%emt 0:02:32]} 4. e5 {[%emt 0:05:31]} Nfd7 {[%emt 0:00:03]} 5. Bd3 {[%emt 0:00:13]} c5 {[%emt 0:00:11]} 6. c3 {[%emt 0:00:13]} Nc6 {[%emt 0:00:13]} 7. Ne2 {[%emt 0:00:27]} Be7 {[%emt 0:10:11]} 8. O-O {[%emt 0:00:39]} Qb6 {[%emt 0:09:26]} 9. Nf3 {[%emt 0:01:53]} O-O {[%emt 0:02:51]} 10. Nf4 {[%emt 0:12:44]} Kh8 {[%emt 0:10:13]} 11. Bc2 {[%emt 0:01:59]} Re8 {[%emt 0:03:36]} 12. Re1 {[%emt 0:08:05]} Nf8 {[%emt 0:06:46]} 13. a3 {[%emt 0:06:15]} Bd7 {[%emt 0:03:09]} 14. b4 {[%emt 0:13:04]} cxd4 {[%emt 0:02:00]} 15. cxd4 {[%emt 0:01:45]} a5 {[%emt 0:01:19]} 16. bxa5 {[%emt 0:01:41]} Nxa5 {[%emt 0:01:40]} 17. Rb1 {[%emt 0:09:00]} Qa7 {[%emt 0:05:07]} 18. a4 {[%emt 0:07:46]} Nc4 {[%emt 0:03:18]} 19. Qd3 {[%emt 0:01:20]} Reb8 {[%emt 0:07:07]} 20. Bb3 {[%emt 0:15:06]} Nb6 {[%emt 0:03:17]} 21. Ra1 {[%emt 0:02:02]} Nxa4 {[%emt 0:00:52]} 22. Ba3 {[%emt 0:02:03]} Bxa3 {[%emt 0:06:56]} 23. Rxa3 {[%emt 0:00:04]} Qa5 {[%emt 0:01:31]} 24. Rea1 {[%emt 0:00:55]} b5 {[%emt 0:01:53]} 25. h4 {[%emt 0:01:04]} Qb4 {[%emt 0:03:13]} 26. Ng5 {[%emt 0:01:04]} Kg8 {[%emt 0:01:11]} 27. Bxd5 {[%emt 0:03:25]} Nb2 {[%emt 0:04:15]} 28. Qe3 {[%emt 0:02:55]} Rxa3 {[%emt 0:00:46]} 29. Rxa3 {[%emt 0:00:03]} Nd1 {[%emt 0:01:18]} 30. Qf3 {[%emt 0:02:31]} 0-1

[Event "Frauenbundesliga 2024-25"]
[Site "Germany"]
[Date "2025.02.16"]
[Round "6"]
[White "Roebers, Eline"]
[Black "Pipiras, Filipa Fortuna"]
[Result "1-0"]
[Annotator "ChessBase"]
[ECO "B40"]
[WhiteElo "2361"]
[BlackElo "2200"]
[PlyCount "89"]
[EventDate "2024.11.06"]
[EventType "team-tourn"]
[EventCountry "GER"]
[SourceTitle "playchess.com"]
[Source "ChessBase"]
[SourceQuality "1"]
[TimeControl "40/5400+30:1800+30"]

1. e4 {[%emt 0:00:01]} c5 {[%emt 0:00:16]} 2. Nf3 {[%emt 0:00:02]} e6 {[%emt 0:00:09]} 3. h3 {[%emt 0:00:20]} Nc6 {[%emt 0:02:54]} 4. Nc3 {[%emt 0:00:25]} d6 {[%emt 0:06:14]} 5. d4 {[%emt 0:00:04]} cxd4 {[%emt 0:00:07]} 6. Nxd4 {[%emt 0:00:03]} Nf6 {[%emt 0:01:24]} 7. f4 {[%emt 0:03:36]} Be7 {[%emt 0:01:29]} 8. Be3 {[%emt 0:01:23]} O-O {[%emt 0:04:42]} 9. Qf3 {[%emt 0:00:26]} Bd7 {[%emt 0:04:05]} 10. O-O-O {[%emt 0:07:58]} Qc7 {[%emt 0:10:44]} 11. g4 {[%emt 0:04:06]} Nxd4 {[%emt 0:03:56]} 12. Bxd4 {[%emt 0:00:19]} Bc6 {[%emt 0:02:16]} 13. g5 {[%emt 0:02:52]} Nd7 {[%emt 0:01:35]} 14. h4 {[%emt 0:04:19]} a6 {[%emt 0:14:21]} 15. h5 {[%emt 0:22:30]} e5 {[%emt 0:20:44]} 16. Be3 {[%emt 0:00:46]} exf4 {[%emt 0:02:01]} 17. Bxf4 {[%emt 0:00:05]} b5 {[%emt 0:05:21]} 18. Qg3 {[%emt 0:01:20]} b4 {[%emt 0:04:31]} 19. Nd5 {[%emt 0:00:27]} Bxd5 {[%emt 0:00:21]} 20. Rxd5 {[%emt 0:00:04]} Ne5 {[%emt 0:03:31]} 21. Bxe5 {[%emt 0:13:56]} dxe5 {[%emt 0:00:55]} 22. Qxe5 {[%emt 0:00:06]} Rfc8 {[%emt 0:03:13]} 23. Qxc7 {[%emt 0:02:31]} Rxc7 {[%emt 0:00:07]} 24. b3 {[%emt 0:00:28]} Rc5 {[%emt 0:03:31]} 25. Rxc5 {[%emt 0:00:20]} Bxc5 {[%emt 0:00:06]} 26. g6 {[%emt 0:00:06]} Kf8 {[%emt 0:02:19]} 27. Bc4 {[%emt 0:00:18]} h6 {[%emt 0:01:57]} 28. gxf7 {[%emt 0:01:15]} a5 {[%emt 0:00:23]} 29. Rd1 {[%emt 0:03:28]} Be7 {[%emt 0:00:35]} 30. e5 {[%emt 0:02:51]} a4 {[%emt 0:00:33]} 31. bxa4 {[%emt 0:01:49]} Rxa4 {[%emt 0:00:08]} 32. Rd7 {[%emt 0:01:25]} Ra8 {[%emt 0:00:36]} 33. Kb2 {[%emt 0:00:46]} Rb8 {[%emt 0:00:40]} 34. c3 {[%emt 0:01:11]} Rc8 {[%emt 0:00:31]} 35. Kb3 {[%emt 0:00:20]} bxc3 {[%emt 0:00:18]} 36. Kxc3 {[%emt 0:00:11]} Rc6 {[%emt 0:00:37]} 37. Rb7 {[%emt 0:00:31]} Rc8 {[%emt 0:00:47]} 38. a4 {[%emt 0:00:21]} Bd8 {[%emt 0:00:26]} 39. e6 {[%emt 0:00:20]} Bf6+ {[%emt 0:00:25]} 40. Kb3 {[%emt 0:00:05]} Bd8 {[%emt 0:00:29]} 41. a5 {[%emt 0:30:05]} Bf6 {[%emt 0:02:13]} 42. a6 {[%emt 0:00:00]} Be7 {[%emt 0:00:03]} 43. a7 {[%emt 0:00:00]} Bd6 {[%emt 0:00:05]} 44. e7+ {[%emt 0:00:00]} Bxe7 {[%emt 0:00:06]} 45. Rb8 {[%emt 0:00:00]} 1-0

[Event "Frauenbundesliga 2024-25"]
[Site "Germany"]
[Date "2025.02.16"]
[Round "6"]
[White "Voicu-Jagodzinsky, Carmen"]
[Black "Socko, Monika"]
[Result "1/2-1/2"]
[Annotator "ChessBase"]
[ECO "C15"]
[WhiteElo "2217"]
[BlackElo "2367"]
[PlyCount "66"]
[EventDate "2024.11.06"]
[EventType "team-tourn"]
[EventCountry "GER"]
[SourceTitle "playchess.com"]
[Source "ChessBase"]
[SourceQuality "1"]
[TimeControl "40/5400+30:1800+30"]

1. e4 {[%emt 0:00:02]} e6 {[%emt 0:00:05]} 2. d4 {[%emt 0:00:04]} d5 {[%emt 0:00:04]} 3. Nc3 {[%emt 0:00:02]} Bb4 {[%emt 0:00:05]} 4. exd5 {[%emt 0:00:12]} exd5 {[%emt 0:00:06]} 5. Bd3 {[%emt 0:00:04]} Ne7 {[%emt 0:02:25]} 6. Qh5 {[%emt 0:00:53]} Be6 {[%emt 0:01:02]} 7. Nf3 {[%emt 0:01:15]} Nbc6 {[%emt 0:03:05]} 8. a3 {[%emt 0:05:53]} Bxc3+ {[%emt 0:02:38]} 9. bxc3 {[%emt 0:00:01]} Qd7 {[%emt 0:00:11]} 10. h3 {[%emt 0:01:55]} Bf5 {[%emt 0:03:03]} 11. O-O {[%emt 0:02:47]} Bg6 {[%emt 0:07:41]} 12. Qg5 {[%emt 0:05:21]} O-O-O {[%emt 0:06:55]} 13. Rb1 {[%emt 0:01:53]} h6 {[%emt 0:01:11]} 14. Qd2 {[%emt 0:00:40]} Be4 {[%emt 0:01:34]} 15. Qe2 {[%emt 0:04:21]} Bxd3 {[%emt 0:01:30]} 16. cxd3 {[%emt 0:00:25]} g5 {[%emt 0:03:43]} 17. Ne5 {[%emt 0:03:23]} Nxe5 {[%emt 0:03:13]} 18. dxe5 {[%emt 0:00:06]} Nc6 {[%emt 0:00:13]} 19. f4 {[%emt 0:01:38]} d4 {[%emt 0:05:08]} 20. c4 {[%emt 0:00:41]} Rde8 {[%emt 0:01:47]} 21. Rb5 {[%emt 0:01:46]} gxf4 {[%emt 0:02:37]} 22. Bxf4 {[%emt 0:00:32]} Rhg8 {[%emt 0:01:35]} 23. Qh5 {[%emt 0:03:34]} Rg6 {[%emt 0:01:52]} 24. Kh1 {[%emt 0:04:21]} Reg8 {[%emt 0:00:29]} 25. Rf2 {[%emt 0:01:06]} f6 {[%emt 0:10:07]} 26. e6 {[%emt 0:04:28]} Qxe6 {[%emt 0:03:34]} 27. Re2 {[%emt 0:00:51]} Ne5 {[%emt 0:03:11]} 28. Bxe5 {[%emt 0:07:13]} fxe5 {[%emt 0:00:05]} 29. Rbxe5 {[%emt 0:01:10]} Qf6 {[%emt 0:03:20]} 30. Rf5 {[%emt 0:06:50]} Qc6 {[%emt 0:04:49]} 31. Rd5 {[%emt 0:00:10]} Qf6 {[%emt 0:02:57]} 32. Rf5 {[%emt 0:00:26]} Qc6 {[%emt 0:02:55]} 33. Rd5 {[%emt 0:00:08]} Qf6 {[%emt 0:03:31]} 1/2-1/2

[Event "Frauenbundesliga 2024-25"]
[Site "Germany"]
[Date "2025.02.16"]
[Round "6"]
[White "Trunz, Michelle"]
[Black "Papp, Sarah"]
[Result "0-1"]
[Annotator "ChessBase"]
[ECO "E11"]
[WhiteElo "2161"]
[BlackElo "2274"]
[PlyCount "93"]
[EventDate "2024.11.06"]
[EventType "team-tourn"]
[EventCountry "GER"]
[SourceTitle "playchess.com"]
[Source "ChessBase"]
[SourceQuality "1"]
[TimeControl "40/5400+30:1800+30"]

1. d4 {[%emt 0:00:01]} Nf6 {[%emt 0:00:06]} 2. c4 {[%emt 0:00:05]} e6 {[%emt 0:00:03]} 3. Nf3 {[%emt 0:00:04]} d5 {[%emt 0:00:06]} 4. g3 {[%emt 0:00:05]} Bb4+ {[%emt 0:00:17]} 5. Bd2 {[%emt 0:00:06]} Be7 {[%emt 0:00:05]} 6. Bg2 {[%emt 0:00:07]} O-O {[%emt 0:00:07]} 7. O-O {[%emt 0:00:13]} Nbd7 {[%emt 0:00:12]} 8. Qc2 {[%emt 0:00:55]} c6 {[%emt 0:00:06]} 9. Bf4 {[%emt 0:00:34]} a5 {[%emt 0:00:06]} 10. b3 {[%emt 0:06:36]} b6 {[%emt 0:00:14]} 11. Nbd2 {[%emt 0:03:25]} Nh5 {[%emt 0:02:56]} 12. Be3 {[%emt 0:00:17]} Ba6 {[%emt 0:03:42]} 13. Rfd1 {[%emt 0:04:23]} f5 {[%emt 0:18:59]} 14. Ne5 {[%emt 0:04:30]} Rc8 {[%emt 0:08:01]} 15. Ndf3 {[%emt 0:09:50]} Bd6 {[%emt 0:07:23]} 16. Bf4 {[%emt 0:20:31]} Nxf4 {[%emt 0:01:46]} 17. gxf4 {[%emt 0:00:15]} Nf6 {[%emt 0:02:53]} 18. Ng5 {[%emt 0:07:11]} Qe8 {[%emt 0:06:49]} 19. e3 {[%emt 0:08:45]} h6 {[%emt 0:11:23]} 20. Nh3 {[%emt 0:03:47]} Qh5 {[%emt 0:08:32]} 21. f3 {[%emt 0:03:39]} c5 {[%emt 0:02:55]} 22. Qf2 {[%emt 0:04:19]} Rfd8 {[%emt 0:05:52]} 23. Rac1 {[%emt 0:04:16]} cxd4 {[%emt 0:03:43]} 24. exd4 {[%emt 0:01:21]} Ba3 {[%emt 0:03:16]} 25. Rc2 {[%emt 0:02:17]} Ne4 {[%emt 0:04:15]} 26. Qe2 {[%emt 0:01:00]} Nd6 {[%emt 0:00:09]} 27. Nd3 {[%emt 0:01:18]} dxc4 {[%emt 0:01:13]} 28. Qxe6+ {[%emt 0:01:08]} Qf7 {[%emt 0:00:06]} 29. Qxf7+ {[%emt 0:01:00]} Nxf7 {[%emt 0:02:08]} 30. Ndf2 {[%emt 0:03:45]} cxb3 {[%emt 0:00:30]} 31. Rxc8 {[%emt 0:00:19]} Rxc8 {[%emt 0:00:44]} 32. axb3 {[%emt 0:00:06]} Rc3 {[%emt 0:00:24]} 33. Rb1 {[%emt 0:01:26]} Bb7 {[%emt 0:02:08]} 34. Bf1 {[%emt 0:02:42]} Nd6 {[%emt 0:00:30]} 35. Nd1 {[%emt 0:00:55]} Rc1 {[%emt 0:01:40]} 36. Rxc1 {[%emt 0:00:45]} Bxc1 {[%emt 0:00:02]} 37. Bd3 {[%emt 0:00:34]} Bxf3 {[%emt 0:00:33]} 38. Bc2 {[%emt 0:00:44]} Nb5 {[%emt 0:01:28]} 39. Nhf2 {[%emt 0:02:35]} Nxd4 {[%emt 0:00:28]} 40. Bd3 {[%emt 0:00:19]} Bxf4 {[%emt 0:00:28]} 41. Nc3 {[%emt 0:32:57]} Bc6 {[%emt 0:34:05]} 42. Bc4+ {[%emt 0:01:54]} Kf8 {[%emt 0:00:15]} 43. Nd5 {[%emt 0:00:00]} Bxd5 {[%emt 0:00:00]} 44. Bxd5 {[%emt 0:00:00]} Be3 {[%emt 0:00:00]} 45. Kg2 {[%emt 0:00:00]} Bxf2 {[%emt 0:00:00]} 46. Kxf2 {[%emt 0:00:00]} f4 {[%emt 0:00:00]} 47. Ke1 {[%emt 0:00:00]} 0-1

[Event "Frauenbundesliga 2024-25"]
[Site "Germany"]
[Date "2025.02.16"]
[Round "6"]
[White "Scognamiglio, Stefanie"]
[Black "Moeller, Lisa-Marie"]
[Result "1-0"]
[Annotator "NA"]
[ECO "B20"]
[WhiteElo "2093"]
[BlackElo "1966"]
[PlyCount "79"]
[EventDate "2024.11.06"]
[EventType "team-tourn"]
[EventCountry "GER"]
[SourceTitle "playchess.com"]
[Source "ChessBase"]
[SourceQuality "1"]
[TimeControl "40/5400+30:1800+30"]

1. e4 {[%emt 0:00:01]} c5 {[%emt 0:00:05]} 2. c4 {[%emt 0:01:26]} Nc6 {[%emt 0:00:34]} 3. g3 {[%emt 0:01:11]} e6 {[%emt 0:00:52]} 4. Bg2 {[%emt 0:00:09]} g6 {[%emt 0:00:32]} 5. Ne2 {[%emt 0:00:24]} Bg7 {[%emt 0:00:07]} 6. Nbc3 {[%emt 0:01:56]} Nge7 {[%emt 0:01:34]} 7. O-O {[%emt 0:00:42]} O-O {[%emt 0:00:14]} 8. d3 {[%emt 0:01:57]} d6 {[%emt 0:03:14]} 9. Rb1 {[%emt 0:02:24]} a6 {[%emt 0:05:49]} 10. a3 {[%emt 0:04:50]} Nd4 {[%emt 0:12:56]} 11. Nxd4 {[%emt 0:01:03]} cxd4 {[%emt 0:03:42]} 12. Ne2 {[%emt 0:01:11]} Rb8 {[%emt 0:02:30]} 13. Bg5 {[%emt 0:09:36]} e5 {[%emt 0:06:57]} 14. Qc1 {[%emt 0:00:30]} Be6 {[%emt 0:03:44]} 15. Bh6 {[%emt 0:04:20]} Qd7 {[%emt 0:03:47]} 16. Bxg7 {[%emt 0:14:18]} Kxg7 {[%emt 0:00:08]} 17. f4 {[%emt 0:00:21]} f5 {[%emt 0:02:56]} 18. b3 {[%emt 0:10:48]} fxe4 {[%emt 0:10:57]} 19. dxe4 {[%emt 0:03:09]} Bg4 {[%emt 0:01:23]} 20. Qd2 {[%emt 0:00:52]} b5 {[%emt 0:06:19]} 21. fxe5 {[%emt 0:12:36]} dxe5 {[%emt 0:01:29]} 22. Rxf8 {[%emt 0:06:09]} Rxf8 {[%emt 0:00:18]} 23. Nc1 {[%emt 0:02:07]} Bf3 {[%emt 0:09:39]} 24. Nd3 {[%emt 0:02:20]} Bxg2 {[%emt 0:02:44]} 25. Qxg2 {[%emt 0:03:46]} Qe6 {[%emt 0:08:11]} 26. cxb5 {[%emt 0:02:58]} axb5 {[%emt 0:00:06]} 27. Qe2 {[%emt 0:01:24]} Rc8 {[%emt 0:01:48]} 28. b4 {[%emt 0:00:14]} Rc3 {[%emt 0:01:43]} 29. Rf1 {[%emt 0:01:05]} Ng8 {[%emt 0:09:15]} 30. Nc5 {[%emt 0:00:57]} Qc6 {[%emt 0:00:35]} 31. Qa2 {[%emt 0:01:09]} Rc4 {[%emt 0:00:50]} 32. Qf2 {[%emt 0:01:33]} Nf6 {[%emt 0:00:32]} 33. g4 {[%emt 0:00:17]} g5 {[%emt 0:00:49]} 34. h4 {[%emt 0:00:33]} h6 {[%emt 0:00:04]} 35. Qf5 {[%emt 0:01:01]} Rxc5 {[%emt 0:00:46]} 36. bxc5 {[%emt 0:00:28]} gxh4 {[%emt 0:00:17]} 37. Qxe5 {[%emt 0:01:34]} d3 {[%emt 0:00:24]} 38. Qe7+ {[%emt 0:00:28]} Kg6 {[%emt 0:00:28]} 39. e5 {[%emt 0:00:15]} Nxg4 {[%emt 0:00:43]} 40. Qf7+ {[%emt 0:00:10]} 1-0

[Event "Frauenbundesliga 2024-25"]
[Site "Germany"]
[Date "2025.02.16"]
[Round "6"]
[White "Trunz, Elena"]
[Black "Rogozenco, Teodora"]
[Result "1-0"]
[Annotator "NA"]
[ECO "C77"]
[WhiteElo "2089"]
[BlackElo "2013"]
[PlyCount "53"]
[EventDate "2024.11.06"]
[EventType "team-tourn"]
[EventCountry "GER"]
[SourceTitle "playchess.com"]
[Source "ChessBase"]
[SourceQuality "1"]
[TimeControl "40/5400+30:1800+30"]

1. e4 {[%emt 0:00:03]} e5 {[%emt 0:00:09]} 2. Nf3 {[%emt 0:00:18]} Nc6 {[%emt 0:00:05]} 3. Bb5 {[%emt 0:00:11]} a6 {[%emt 0:00:06]} 4. Ba4 {[%emt 0:00:04]} Nf6 {[%emt 0:00:18]} 5. d3 {[%emt 0:01:17]} b5 {[%emt 0:00:58]} 6. Bb3 {[%emt 0:00:05]} Be7 {[%emt 0:01:38]} 7. c3 {[%emt 0:00:44]} O-O {[%emt 0:00:20]} 8. O-O {[%emt 0:00:15]} d5 {[%emt 0:11:18]} 9. exd5 {[%emt 0:05:41]} Nxd5 {[%emt 0:00:06]} 10. Re1 {[%emt 0:02:21]} Bf6 {[%emt 0:00:14]} 11. Be3 {[%emt 0:10:43]} Bg4 {[%emt 0:08:32]} 12. Nbd2 {[%emt 0:13:50]} Nxe3 {[%emt 0:14:52]} 13. Rxe3 {[%emt 0:01:37]} Bg5 {[%emt 0:16:49]} 14. Re4 {[%emt 0:02:13]} Bh5 {[%emt 0:00:07]} 15. g4 {[%emt 0:10:55]} Bxd2 {[%emt 0:13:26]} 16. Qxd2 {[%emt 0:08:17]} Bg6 {[%emt 0:00:07]} 17. Re3 {[%emt 0:00:39]} Re8 {[%emt 0:05:50]} 18. Rae1 {[%emt 0:07:18]} Qd7 {[%emt 0:03:05]} 19. h3 {[%emt 0:01:14]} Rad8 {[%emt 0:00:04]} 20. Nxe5 {[%emt 0:08:46]} Nxe5 {[%emt 0:06:16]} 21. Rxe5 {[%emt 0:00:05]} c5 {[%emt 0:00:21]} 22. Rxc5 {[%emt 0:07:42]} h5 {[%emt 0:04:32]} 23. Rd5 {[%emt 0:06:07]} Qc8 {[%emt 0:00:20]} 24. Rxe8+ {[%emt 0:03:46]} Rxe8 {[%emt 0:00:05]} 25. Rg5 {[%emt 0:02:40]} hxg4 {[%emt 0:01:28]} 26. Rxg6 {[%emt 0:00:57]} Qf5 {[%emt 0:02:10]} 27. Rxg4 {[%emt 0:01:20]} 1-0

[Event "Frauenbundesliga 2024-25"]
[Site "Germany"]
[Date "2025.02.16"]
[Round "6"]
[White "Zhou, Lepu Coco"]
[Black "Kulovana, Eva"]
[Result "1/2-1/2"]
[Annotator "NA"]
[ECO "B12"]
[WhiteElo "2040"]
[BlackElo "2112"]
[PlyCount "147"]
[EventDate "2024.11.06"]
[EventType "team-tourn"]
[EventCountry "GER"]
[SourceTitle "playchess.com"]
[Source "ChessBase"]
[SourceQuality "1"]
[TimeControl "40/5400+30:1800+30"]

1. e4 {[%emt 0:00:04]} c6 {[%emt 0:00:07]} 2. d4 {[%emt 0:00:09]} d5 {[%emt 0:00:06]} 3. e5 {[%emt 0:00:04]} c5 {[%emt 0:00:09]} 4. c4 {[%emt 0:00:09]} cxd4 {[%emt 0:00:25]} 5. Nf3 {[%emt 0:00:20]} Bg4 {[%emt 0:00:57]} 6. cxd5 {[%emt 0:01:37]} Qxd5 {[%emt 0:00:30]} 7. Nc3 {[%emt 0:01:05]} Qa5 {[%emt 0:00:56]} 8. Qxd4 {[%emt 0:03:10]} Bxf3 {[%emt 0:02:20]} 9. gxf3 {[%emt 0:03:02]} Nc6 {[%emt 0:00:50]} 10. Bb5 {[%emt 0:04:18]} Qxb5 {[%emt 0:57:33]} 11. Nxb5 {[%emt 0:00:16]} Nxd4 {[%emt 0:00:06]} 12. Nxd4 {[%emt 0:00:08]} e6 {[%emt 0:02:16]} 13. Nb5 {[%emt 0:03:16]} Rd8 {[%emt 0:04:54]} 14. Be3 {[%emt 0:01:03]} Bb4+ {[%emt 0:06:27]} 15. Ke2 {[%emt 0:00:05]} a6 {[%emt 0:00:07]} 16. Nc7+ {[%emt 0:01:40]} Kf8 {[%emt 0:00:13]} 17. Rhd1 {[%emt 0:01:11]} Be7 {[%emt 0:09:53]} 18. Bb6 {[%emt 0:06:49]} Rxd1 {[%emt 0:04:03]} 19. Rxd1 {[%emt 0:00:08]} h5 {[%emt 0:01:14]} 20. Rd7 {[%emt 0:02:16]} h4 {[%emt 0:01:01]} 21. Na8 {[%emt 0:02:11]} Rh5 {[%emt 0:00:16]} 22. f4 {[%emt 0:00:19]} g5 {[%emt 0:00:28]} 23. Rxb7 {[%emt 0:01:58]} gxf4 {[%emt 0:00:41]} 24. Bd4 {[%emt 0:01:46]} Rg5 {[%emt 0:03:54]} 25. Rb3 {[%emt 0:03:51]} Nh6 {[%emt 0:01:00]} 26. Rf3 {[%emt 0:03:07]} Ng4 {[%emt 0:01:21]} 27. Rxf4 {[%emt 0:00:42]} Nxe5 {[%emt 0:00:35]} 28. Rxh4 {[%emt 0:00:47]} Ng6 {[%emt 0:00:28]} 29. Re4 {[%emt 0:01:08]} e5 {[%emt 0:00:48]} 30. Be3 {[%emt 0:00:51]} Rg2 {[%emt 0:00:19]} 31. Nc7 {[%emt 0:00:52]} Rxh2 {[%emt 0:00:34]} 32. Nxa6 {[%emt 0:00:42]} f5 {[%emt 0:00:27]} 33. Rc4 {[%emt 0:00:18]} e4 {[%emt 0:00:25]} 34. Nc7 {[%emt 0:20:24]} Kf7 {[%emt 0:00:57]} 35. Nd5 {[%emt 0:00:55]} Bd6 {[%emt 0:00:43]} 36. Bc5 {[%emt 0:09:06]} Be5 {[%emt 0:00:47]} 37. Bd4 {[%emt 0:00:09]} Bxd4 {[%emt 0:00:25]} 38. Rxd4 {[%emt 0:00:06]} Ke6 {[%emt 0:00:14]} 39. Nc7+ {[%emt 0:03:52]} Ke5 {[%emt 0:00:26]} 40. Rd5+ {[%emt 0:00:13]} Kf6 {[%emt 0:00:37]} 41. Rd6+ {[%emt 0:30:53]} Kf7 {[%emt 0:04:57]} 42. Nd5 {[%emt 0:00:00]} f4 {[%emt 0:06:04]} 43. Nc3 {[%emt 0:00:00]} e3 {[%emt 0:12:44]} 44. Ne4 {[%emt 0:00:00]} Kg7 {[%emt 0:00:53]} 45. Rd7+ {[%emt 0:00:00]} Kg8 {[%emt 0:04:24]} 46. Rd5 {[%emt 0:00:00]} Ne7 {[%emt 0:01:51]} 47. Rh5 {[%emt 0:00:00]} Rxh5 {[%emt 0:01:18]} 48. Nf6+ {[%emt 0:00:00]} Kf7 {[%emt 0:00:13]} 49. Nxh5 {[%emt 0:00:00]} exf2 {[%emt 0:00:20]} 50. Nxf4 {[%emt 0:00:00]} Kf6 {[%emt 0:00:36]} 51. Kxf2 {[%emt 0:00:00]} Ke5 {[%emt 0:00:06]} 52. Nd3+ {[%emt 0:00:00]} Kd4 {[%emt 0:00:07]} 53. Ke2 {[%emt 0:00:00]} Nf5 {[%emt 0:00:55]} 54. a4 {[%emt 0:00:00]} Kc4 {[%emt 0:00:53]} 55. b4 {[%emt 0:00:00]} Nd4+ {[%emt 0:00:40]} 56. Kd2 {[%emt 0:00:00]} Kb3 {[%emt 0:01:40]} 57. a5 {[%emt 0:00:00]} Kc4 {[%emt 0:00:34]} 58. a6 {[%emt 0:00:00]} Nb5 {[%emt 0:00:27]} 59. Ke3 {[%emt 0:00:00]} Na7 {[%emt 0:00:17]} 60. Ke4 {[%emt 0:00:00]} Kb5 {[%emt 0:00:19]} 61. Kd5 {[%emt 0:00:00]} Kxa6 {[%emt 0:00:24]} 62. Kc5 {[%emt 0:00:00]} Kb7 {[%emt 0:00:24]} 63. Ne5 {[%emt 0:00:00]} Kc7 {[%emt 0:00:49]} 64. Nc4 {[%emt 0:00:00]} Kb7 {[%emt 0:00:28]} 65. Nd6+ {[%emt 0:00:00]} Kc7 {[%emt 0:00:53]} 66. Kd5 {[%emt 0:00:00]} Kb6 {[%emt 0:00:36]} 67. Kc4 {[%emt 0:00:00]} Kc6 {[%emt 0:00:33]} 68. Ne8 {[%emt 0:00:00]} Kb6 {[%emt 0:00:20]} 69. Nf6 {[%emt 0:00:00]} Nc6 {[%emt 0:00:47]} 70. b5 {[%emt 0:00:00]} Na7 {[%emt 0:00:17]} 71. Nd5+ {[%emt 0:00:00]} Kb7 {[%emt 0:00:12]} 72. b6 {[%emt 0:00:00]} Nc8 {[%emt 0:00:11]} 73. Kc5 {[%emt 0:00:00]} Nxb6 {[%emt 0:00:11]} 74. Nxb6 {[%emt 0:00:00]} 1/2-1/2